[Event "Titled Tuesday Blitz November 08 Late 2022"]
[White "Boruchovsky, Avital"]
[Black "Swiercz, Dariusz"]
[WhiteFideId "2800055"]
[BlackFideId "1126881"]
[WhiteElo "2458"]
[BlackElo "2627"]
[Result "1-0"]
[Round "04"]
[TimeControl "180+1"]
[Date "2022.11.08"]
[WhiteClock "0:00:09"]
[BlackClock "0:00:07"]

1. e4 {[%clk 0:03:00]}  c6 {[%clk 0:02:57]} 2. c4 {[%clk 0:02:56]}  d5 {[%clk 0:02:58]} 3. cxd5 {[%clk 0:02:57]}  cxd5 {[%clk 0:02:58]} 4. exd5 {[%clk 0:02:58]}  Nf6 {[%clk 0:02:58]} 5. Nc3 {[%clk 0:02:58]}  Nxd5 {[%clk 0:02:57]} 6. Nf3 {[%clk 0:02:59]}  Nc6 {[%clk 0:02:57]} 7. Bb5 {[%clk 0:02:54]}  g6 {[%clk 0:02:55]} 8. Qa4 {[%clk 0:02:54]}  Nb6 {[%clk 0:02:53]} 9. Bxc6+ {[%clk 0:02:53]}  bxc6 {[%clk 0:02:53]} 10. Qxc6+ {[%clk 0:02:54]}  Bd7 {[%clk 0:02:54]} 11. Qe4 {[%clk 0:02:54]}  Bg7 {[%clk 0:02:51]} 12. d4 {[%clk 0:02:52]}  O-O {[%clk 0:02:51]} 13. O-O {[%clk 0:02:51]}  Rc8 {[%clk 0:02:50]} 14. h3 {[%clk 0:02:44]}  Bc6 {[%clk 0:02:50]} 15. Qe2 {[%clk 0:02:43]}  Bxf3 {[%clk 0:02:49]} 16. Qxf3 {[%clk 0:02:44]}  Qxd4 {[%clk 0:02:48]} 17. Be3 {[%clk 0:02:38]}  Qb4 {[%clk 0:02:44]} 18. Bxb6 {[%clk 0:02:21]}  Qxb6 {[%clk 0:02:45]} 19. Nd5 {[%clk 0:02:21]}  Qd6 {[%clk 0:02:42]} 20. Rad1 {[%clk 0:02:04]}  Kh8 {[%clk 0:02:13]} 21. Rfe1 {[%clk 0:01:36]}  e6 {[%clk 0:02:07]} 22. Ne3 {[%clk 0:01:22]}  Qc6 {[%clk 0:01:56]} 23. Qxc6 {[%clk 0:01:19]}  Rxc6 {[%clk 0:01:57]} 24. Re2 {[%clk 0:01:18]}  Bh6 {[%clk 0:01:34]} 25. b3 {[%clk 0:01:12]}  Bxe3 {[%clk 0:01:34]} 26. Rxe3 {[%clk 0:01:13]}  Rc7 {[%clk 0:01:29]} 27. g4 {[%clk 0:00:59]}  h6 {[%clk 0:01:29]} 28. Kg2 {[%clk 0:00:56]}  Kg7 {[%clk 0:01:29]} 29. Rd6 {[%clk 0:00:56]}  Rfc8 {[%clk 0:01:19]} 30. Rf3 {[%clk 0:00:51]}  Rb7 {[%clk 0:01:16]} 31. Ra6 {[%clk 0:00:36]}  Rc2 {[%clk 0:01:11]} 32. Rd3 {[%clk 0:00:35]}  Rbc7 {[%clk 0:01:04]} 33. Ra5 {[%clk 0:00:34]}  Rb2 {[%clk 0:01:02]} 34. Rf3 {[%clk 0:00:33]}  g5 {[%clk 0:00:48]} 35. a3 {[%clk 0:00:30]}  Kg6 {[%clk 0:00:42]} 36. b4 {[%clk 0:00:27]}  h5 {[%clk 0:00:35]} 37. Re3 {[%clk 0:00:22]}  h4 {[%clk 0:00:24]} 38. Ree5 {[%clk 0:00:21]}  Rcc2 {[%clk 0:00:24]} 39. Rxg5+ {[%clk 0:00:16]}  Kf6 {[%clk 0:00:24]} 40. Kf3 {[%clk 0:00:11]}  Rxf2+ {[%clk 0:00:23]} 41. Ke4 {[%clk 0:00:12]}  Rbd2 {[%clk 0:00:18]} 42. Rh5 {[%clk 0:00:11]}  Rfe2+ {[%clk 0:00:16]} 43. Kf3 {[%clk 0:00:11]}  Rf2+ {[%clk 0:00:16]} 44. Ke3 {[%clk 0:00:10]}  Rfe2+ {[%clk 0:00:14]} 45. Kf3 {[%clk 0:00:10]}  Re1 {[%clk 0:00:13]} 46. Rxh4 {[%clk 0:00:10]}  Rd3+ {[%clk 0:00:14]} 47. Kf2 {[%clk 0:00:10]}  Rb1 {[%clk 0:00:13]} 48. Rh6+ {[%clk 0:00:10]}  Kg7 {[%clk 0:00:13]} 49. Rhh5 {[%clk 0:00:11]}  Rb2+ {[%clk 0:00:14]} 50. Ke1 {[%clk 0:00:11]}  Rg3 {[%clk 0:00:13]} 51. Kf1 {[%clk 0:00:11]}  Rf3+ {[%clk 0:00:12]} 52. Ke1 {[%clk 0:00:11]}  Re3+ {[%clk 0:00:12]} 53. Kf1 {[%clk 0:00:11]}  Rf3+ {[%clk 0:00:11]} 54. Ke1 {[%clk 0:00:11]}  Rg3 {[%clk 0:00:11]} 55. Kf1 {[%clk 0:00:11]}  Ra2 {[%clk 0:00:10]} 56. Rxa7 {[%clk 0:00:10]}  Rb3 {[%clk 0:00:09]} 57. Re5 {[%clk 0:00:10]}  Rxh3 {[%clk 0:00:05]} 58. Re2 {[%clk 0:00:10]}  Rh1+ {[%clk 0:00:03]} 59. Kg2 {[%clk 0:00:10]}  Raa1 {[%clk 0:00:03]} 60. Rf2 {[%clk 0:00:10]}  Rag1+ {[%clk 0:00:03]} 61. Kf3 {[%clk 0:00:11]}  Kg6 {[%clk 0:00:04]} 62. Ke3 {[%clk 0:00:11]}  f6 {[%clk 0:00:05]} 63. Ra6 {[%clk 0:00:11]}  Rh8 {[%clk 0:00:04]} 64. Kd2 {[%clk 0:00:11]}  e5 {[%clk 0:00:04]} 65. Raxf6+ {[%clk 0:00:10]}  Kg5 {[%clk 0:00:05]} 66. R6f5+ {[%clk 0:00:11]}  Kxg4 {[%clk 0:00:05]} 67. Rxe5 {[%clk 0:00:11]}  Rc8 {[%clk 0:00:06]} 68. Re4+ {[%clk 0:00:11]}  Kg3 {[%clk 0:00:06]} 69. Rf7 {[%clk 0:00:11]}  Ra1 {[%clk 0:00:06]} 70. Re6 {[%clk 0:00:10]}  Ra2+ {[%clk 0:00:06]} 71. Kd3 {[%clk 0:00:11]}  Rxa3+ {[%clk 0:00:07]} 72. Kd4 {[%clk 0:00:12]}  Rd8+ {[%clk 0:00:05]} 73. Kc4 {[%clk 0:00:11]}  Rc8+ {[%clk 0:00:05]} 74. Kb5 {[%clk 0:00:12]}  Rb8+ {[%clk 0:00:06]} 75. Kc5 {[%clk 0:00:12]}  Rc3+ {[%clk 0:00:06]} 76. Kd4 {[%clk 0:00:12]}  Rf3 {[%clk 0:00:06]} 77. Rg6+ {[%clk 0:00:12]}  Kf2 {[%clk 0:00:06]} 78. Rxf3+ {[%clk 0:00:13]}  Kxf3 {[%clk 0:00:07]} 79. Kc5 {[%clk 0:00:13]}  Ke4 {[%clk 0:00:07]} 80. b5 {[%clk 0:00:14]}  Kf5 {[%clk 0:00:08]} 81. Rd6 {[%clk 0:00:13]}  Ke5 {[%clk 0:00:08]} 82. Rd2 {[%clk 0:00:14]}  Ke6 {[%clk 0:00:09]} 83. Kc6 {[%clk 0:00:13]}  Rc8+ {[%clk 0:00:09]} 84. Kb7 {[%clk 0:00:13]}  Rc1 {[%clk 0:00:10]} 85. b6 {[%clk 0:00:14]}  Ke7 {[%clk 0:00:10]} 86. Kb8 {[%clk 0:00:14]}  Ra1 {[%clk 0:00:10]} 87. b7 {[%clk 0:00:14]}  Ke6 {[%clk 0:00:01]} 88. Rd4 {[%clk 0:00:10]}  Ke7 {[%clk 0:00:01]} 89. Rb4 {[%clk 0:00:05]}  Rc1 {[%clk 0:00:01]} 90. Ka7 {[%clk 0:00:04]}  Ra1+ {[%clk 0:00:02]} 91. Kb6 {[%clk 0:00:04]}  Kd7 {[%clk 0:00:03]} 92. b8=Q {[%clk 0:00:04]}  Ke6 {[%clk 0:00:03]} 93. Qe8+ {[%clk 0:00:04]}  Kf6 {[%clk 0:00:04]} 94. Qh8+ {[%clk 0:00:04]}  Kg5 {[%clk 0:00:05]} 95. Qxa1 {[%clk 0:00:04]}  Kg6 {[%clk 0:00:05]} 96. Qc3 {[%clk 0:00:05]}  Kg5 {[%clk 0:00:05]} 97. Rd4 {[%clk 0:00:06]}  Kg6 {[%clk 0:00:06]} 98. Qc5 {[%clk 0:00:07]}  Kf6 {[%clk 0:00:06]} 99. Rd6+ {[%clk 0:00:08]}  Ke7 {[%clk 0:00:07]} 100. Qc7+ {[%clk 0:00:08]}  Ke8 {[%clk 0:00:07]} 101. Rd8# {[%clk 0:00:09]} 1-0


[Site "https://www.chess.com"]

[Event "Titled Tuesday Blitz November 08 Late 2022"]
[White "Burke, Paul"]
[Black "Thiel, Thomas"]
[WhiteFideId "2605767"]
[BlackFideId "4615964"]
[WhiteElo "1812"]
[BlackElo "2209"]
[Result "0-1"]
[Round "04"]
[TimeControl "180+1"]
[Date "2022.11.09"]
[WhiteClock "0:00:05"]
[BlackClock "0:00:16"]

1. e4 {[%clk 0:03:00]}  d5 {[%clk 0:02:57]} 2. exd5 {[%clk 0:02:59]}  Nf6 {[%clk 0:02:57]} 3. d4 {[%clk 0:02:59]}  Nxd5 {[%clk 0:02:56]} 4. c4 {[%clk 0:02:59]}  Nb6 {[%clk 0:02:54]} 5. Nc3 {[%clk 0:02:58]}  e5 {[%clk 0:02:51]} 6. d5 {[%clk 0:02:58]}  Bb4 {[%clk 0:02:48]} 7. Bd2 {[%clk 0:02:46]}  Bf5 {[%clk 0:02:44]} 8. Nf3 {[%clk 0:02:41]}  O-O {[%clk 0:02:39]} 9. Be2 {[%clk 0:02:38]}  Re8 {[%clk 0:02:37]} 10. O-O {[%clk 0:02:37]}  c6 {[%clk 0:02:34]} 11. a3 {[%clk 0:02:32]}  Bf8 {[%clk 0:02:27]} 12. Bg5 {[%clk 0:02:13]}  f6 {[%clk 0:02:24]} 13. Be3 {[%clk 0:02:10]}  cxd5 {[%clk 0:02:22]} 14. cxd5 {[%clk 0:02:10]}  N8d7 {[%clk 0:02:17]} 15. Nh4 {[%clk 0:02:03]}  Bg6 {[%clk 0:02:14]} 16. Nxg6 {[%clk 0:02:03]}  hxg6 {[%clk 0:02:15]} 17. d6 {[%clk 0:01:23]}  Re6 {[%clk 0:01:54]} 18. Qb3 {[%clk 0:01:03]}  Kf7 {[%clk 0:01:50]} 19. Nb5 {[%clk 0:00:56]}  Rc8 {[%clk 0:01:22]} 20. Nc7 {[%clk 0:00:39]}  Rxc7 {[%clk 0:01:21]} 21. dxc7 {[%clk 0:00:39]}  Qxc7 {[%clk 0:01:22]} 22. Rac1 {[%clk 0:00:39]}  Qb8 {[%clk 0:01:19]} 23. a4 {[%clk 0:00:34]}  Qd6 {[%clk 0:01:04]} 24. Rfd1 {[%clk 0:00:31]}  Qb4 {[%clk 0:01:04]} 25. Qxb4 {[%clk 0:00:18]}  Bxb4 {[%clk 0:01:05]} 26. Rc7 {[%clk 0:00:18]}  Re7 {[%clk 0:00:57]} 27. Rxb7 {[%clk 0:00:18]}  Nc5 {[%clk 0:00:52]} 28. Rxe7+ {[%clk 0:00:16]}  Kxe7 {[%clk 0:00:51]} 29. Bxc5+ {[%clk 0:00:15]}  Bxc5 {[%clk 0:00:49]} 30. a5 {[%clk 0:00:15]}  Na4 {[%clk 0:00:47]} 31. b3 {[%clk 0:00:15]}  Nc3 {[%clk 0:00:47]} 32. Rd2 {[%clk 0:00:15]}  Bb4 {[%clk 0:00:44]} 33. Rc2 {[%clk 0:00:14]}  Bxa5 {[%clk 0:00:43]} 34. Bc4 {[%clk 0:00:13]}  Bb4 {[%clk 0:00:42]} 35. Kf1 {[%clk 0:00:13]}  a5 {[%clk 0:00:40]} 36. g3 {[%clk 0:00:13]}  Kd6 {[%clk 0:00:38]} 37. Kg2 {[%clk 0:00:13]}  Kc5 {[%clk 0:00:37]} 38. Bf7 {[%clk 0:00:13]}  g5 {[%clk 0:00:34]} 39. h4 {[%clk 0:00:13]}  gxh4 {[%clk 0:00:33]} 40. gxh4 {[%clk 0:00:13]}  Kd4 {[%clk 0:00:33]} 41. Bg6 {[%clk 0:00:11]}  e4 {[%clk 0:00:30]} 42. h5 {[%clk 0:00:11]}  Kd3 {[%clk 0:00:21]} 43. Rb2 {[%clk 0:00:09]}  Ba3 {[%clk 0:00:18]} 44. Bxe4+ {[%clk 0:00:05]}  Kxe4 {[%clk 0:00:16]} 45. Rc2 {[%clk 0:00:05]}  Kd3 {[%clk 0:00:16]} 46. Rxc3+ {[%clk 0:00:05]}  Kxc3 {[%clk 0:00:16]} 0-1


[Site "https://www.chess.com"]

[Event "Titled Tuesday Blitz November 08 Late 2022"]
[White "Cabarkapa, Novak"]
[Black "Pap, Gyula"]
[WhiteFideId "943746"]
[BlackFideId "725323"]
[WhiteElo "2390"]
[BlackElo "2519"]
[Result "0-1"]
[Round "04"]
[TimeControl "180+1"]
[Date "2022.11.08"]
[WhiteClock "0:00:09"]
[BlackClock "0:00:08"]

1. e4 {[%clk 0:03:00]}  e6 {[%clk 0:03:00]} 2. d3 {[%clk 0:03:00]}  c5 {[%clk 0:02:59]} 3. g3 {[%clk 0:03:00]}  Nc6 {[%clk 0:02:59]} 4. Bg2 {[%clk 0:03:00]}  g6 {[%clk 0:02:59]} 5. f4 {[%clk 0:03:00]}  Bg7 {[%clk 0:02:59]} 6. Nf3 {[%clk 0:03:00]}  Nge7 {[%clk 0:02:59]} 7. O-O {[%clk 0:03:00]}  O-O {[%clk 0:02:59]} 8. c3 {[%clk 0:03:01]}  d6 {[%clk 0:02:58]} 9. Na3 {[%clk 0:02:57]}  Rb8 {[%clk 0:02:57]} 10. d4 {[%clk 0:02:46]}  cxd4 {[%clk 0:02:53]} 11. cxd4 {[%clk 0:02:47]}  b5 {[%clk 0:02:52]} 12. Be3 {[%clk 0:02:46]}  b4 {[%clk 0:02:49]} 13. Nc2 {[%clk 0:02:43]}  b3 {[%clk 0:02:23]} 14. axb3 {[%clk 0:02:40]}  Rxb3 {[%clk 0:02:24]} 15. Qc1 {[%clk 0:02:19]}  Bb7 {[%clk 0:02:06]} 16. Ra3 {[%clk 0:02:03]}  Rxa3 {[%clk 0:02:02]} 17. Nxa3 {[%clk 0:02:02]}  Nb4 {[%clk 0:01:58]} 18. Qb1 {[%clk 0:01:57]}  Qa8 {[%clk 0:01:52]} 19. Nd2 {[%clk 0:01:52]}  Nec6 {[%clk 0:01:47]} 20. Nb5 {[%clk 0:01:47]}  Ba6 {[%clk 0:01:45]} 21. Nc7 {[%clk 0:01:44]}  Qb7 {[%clk 0:01:40]} 22. Nxa6 {[%clk 0:01:44]}  Qxa6 {[%clk 0:01:41]} 23. Re1 {[%clk 0:01:40]}  Bxd4 {[%clk 0:01:33]} 24. Bxd4 {[%clk 0:01:16]}  Nxd4 {[%clk 0:01:34]} 25. e5 {[%clk 0:01:17]}  dxe5 {[%clk 0:01:28]} 26. fxe5 {[%clk 0:01:10]}  Rd8 {[%clk 0:01:05]} 27. Ne4 {[%clk 0:01:09]}  Nd3 {[%clk 0:01:06]} 28. Nf6+ {[%clk 0:01:05]}  Kg7 {[%clk 0:01:06]} 29. Rf1 {[%clk 0:01:01]}  Nxe5 {[%clk 0:00:49]} 30. Qe4 {[%clk 0:01:00]}  Qe2 {[%clk 0:00:42]} 31. Qf4 {[%clk 0:00:50]}  Nf5 {[%clk 0:00:43]} 32. Nh5+ {[%clk 0:00:37]}  Kh8 {[%clk 0:00:22]} 33. Nf6 {[%clk 0:00:15]}  Qe3+ {[%clk 0:00:21]} 34. Qxe3 {[%clk 0:00:14]}  Nxe3 {[%clk 0:00:22]} 35. Ra1 {[%clk 0:00:10]}  Rd1+ {[%clk 0:00:22]} 36. Rxd1 {[%clk 0:00:11]}  Nxd1 {[%clk 0:00:23]} 37. b4 {[%clk 0:00:10]}  Nd3 {[%clk 0:00:20]} 38. b5 {[%clk 0:00:09]}  Nc3 {[%clk 0:00:21]} 39. Bc6 {[%clk 0:00:09]}  Ne5 {[%clk 0:00:18]} 40. Ne8 {[%clk 0:00:08]}  a6 {[%clk 0:00:15]} 41. Nd6 {[%clk 0:00:08]}  axb5 {[%clk 0:00:15]} 42. Bxb5 {[%clk 0:00:08]}  Nxb5 {[%clk 0:00:11]} 43. Nxb5 {[%clk 0:00:09]}  Kg7 {[%clk 0:00:11]} 44. Nd4 {[%clk 0:00:09]}  g5 {[%clk 0:00:10]} 45. Kg2 {[%clk 0:00:10]}  h5 {[%clk 0:00:10]} 46. h3 {[%clk 0:00:09]}  Kg6 {[%clk 0:00:10]} 47. Nb5 {[%clk 0:00:10]}  Nd7 {[%clk 0:00:10]} 48. Nd4 {[%clk 0:00:10]}  Nf6 {[%clk 0:00:09]} 49. Nf3 {[%clk 0:00:10]}  Nd5 {[%clk 0:00:09]} 50. Ne5+ {[%clk 0:00:11]}  Kf6 {[%clk 0:00:10]} 51. Nd7+ {[%clk 0:00:11]}  Kf5 {[%clk 0:00:10]} 52. Kf3 {[%clk 0:00:11]}  g4+ {[%clk 0:00:11]} 53. hxg4+ {[%clk 0:00:11]}  hxg4+ {[%clk 0:00:12]} 54. Kf2 {[%clk 0:00:11]}  Nf6 {[%clk 0:00:12]} 55. Nb6 {[%clk 0:00:10]}  Ne4+ {[%clk 0:00:12]} 56. Kg2 {[%clk 0:00:10]}  e5 {[%clk 0:00:12]} 57. Nc4 {[%clk 0:00:10]}  Ke6 {[%clk 0:00:11]} 58. Ne3 {[%clk 0:00:07]}  f5 {[%clk 0:00:11]} 59. Nf1 {[%clk 0:00:07]}  Nf6 {[%clk 0:00:09]} 60. Ne3 {[%clk 0:00:08]}  Nd5 {[%clk 0:00:09]} 61. Nc4 {[%clk 0:00:08]}  f4 {[%clk 0:00:07]} 62. Kf2 {[%clk 0:00:08]}  Nf6 {[%clk 0:00:06]} 63. Nd2 {[%clk 0:00:04]}  Kf5 {[%clk 0:00:05]} 64. Kg2 {[%clk 0:00:04]}  Ne4 {[%clk 0:00:05]} 65. Nc4 {[%clk 0:00:03]}  Nxg3 {[%clk 0:00:05]} 66. Nd6+ {[%clk 0:00:03]}  Ke6 {[%clk 0:00:06]} 67. Nc4 {[%clk 0:00:04]}  Nf5 {[%clk 0:00:06]} 68. Nd2 {[%clk 0:00:04]}  Nd6 {[%clk 0:00:04]} 69. Nc4 {[%clk 0:00:04]}  Nxc4 {[%clk 0:00:04]} 70. Kh2 {[%clk 0:00:04]}  Ne3 {[%clk 0:00:04]} 71. Kh1 {[%clk 0:00:04]}  Kf5 {[%clk 0:00:05]} 72. Kh2 {[%clk 0:00:05]}  Ke4 {[%clk 0:00:05]} 73. Kg1 {[%clk 0:00:05]}  Kf3 {[%clk 0:00:05]} 74. Kh2 {[%clk 0:00:06]}  Kf2 {[%clk 0:00:05]} 75. Kh1 {[%clk 0:00:06]}  e4 {[%clk 0:00:05]} 76. Kh2 {[%clk 0:00:07]}  g3+ {[%clk 0:00:06]} 77. Kh3 {[%clk 0:00:07]}  g2 {[%clk 0:00:06]} 78. Kh4 {[%clk 0:00:07]}  g1=Q {[%clk 0:00:06]} 79. Kh5 {[%clk 0:00:08]}  Qg4+ {[%clk 0:00:07]} 80. Kh6 {[%clk 0:00:08]}  Nf5+ {[%clk 0:00:07]} 81. Kh7 {[%clk 0:00:09]}  Qg7# {[%clk 0:00:08]} 0-1


[Site "https://www.chess.com"]

[Event "Titled Tuesday Blitz November 08 Late 2022"]
[White "Chernomordik, Pavel"]
[Black "Aung Thant Zin"]
[WhiteFideId "2804530"]
[BlackFideId "13000063"]
[WhiteElo "2192"]
[BlackElo "2278"]
[Result "0-1"]
[Round "04"]
[TimeControl "180+1"]
[Date "2022.11.09"]
[WhiteClock "0:00:51"]
[BlackClock "0:00:19"]

1. e4 {[%clk 0:03:00]}  c5 {[%clk 0:02:59]} 2. Nc3 {[%clk 0:03:00]}  a6 {[%clk 0:02:58]} 3. f4 {[%clk 0:03:00]}  e6 {[%clk 0:02:57]} 4. g3 {[%clk 0:02:59]}  d5 {[%clk 0:02:57]} 5. Bg2 {[%clk 0:02:59]}  dxe4 {[%clk 0:02:53]} 6. Nxe4 {[%clk 0:02:58]}  Be7 {[%clk 0:02:54]} 7. Nf3 {[%clk 0:02:58]}  Nf6 {[%clk 0:02:54]} 8. Qe2 {[%clk 0:02:57]}  O-O {[%clk 0:02:52]} 9. O-O {[%clk 0:02:56]}  Nc6 {[%clk 0:02:52]} 10. d3 {[%clk 0:02:54]}  b5 {[%clk 0:02:49]} 11. c3 {[%clk 0:02:52]}  Bb7 {[%clk 0:02:48]} 12. Be3 {[%clk 0:02:52]}  Nxe4 {[%clk 0:02:26]} 13. dxe4 {[%clk 0:02:52]}  Qc7 {[%clk 0:02:27]} 14. Qf2 {[%clk 0:02:46]}  Nb8 {[%clk 0:01:47]} 15. Qc2 {[%clk 0:02:35]}  Nd7 {[%clk 0:01:42]} 16. e5 {[%clk 0:02:32]}  h6 {[%clk 0:01:40]} 17. Rae1 {[%clk 0:02:28]}  Rfd8 {[%clk 0:01:39]} 18. Bf2 {[%clk 0:02:19]}  Nf8 {[%clk 0:01:37]} 19. f5 {[%clk 0:02:14]}  exf5 {[%clk 0:01:36]} 20. Qxf5 {[%clk 0:02:14]}  Bd5 {[%clk 0:01:32]} 21. b3 {[%clk 0:02:12]}  c4 {[%clk 0:01:32]} 22. b4 {[%clk 0:01:56]}  a5 {[%clk 0:01:31]} 23. a3 {[%clk 0:01:54]}  axb4 {[%clk 0:01:30]} 24. axb4 {[%clk 0:01:54]}  Ra3 {[%clk 0:01:17]} 25. Bd4 {[%clk 0:01:48]}  Be6 {[%clk 0:01:06]} 26. Qc2 {[%clk 0:01:45]}  Rda8 {[%clk 0:00:55]} 27. Qe4 {[%clk 0:01:41]}  R8a6 {[%clk 0:00:49]} 28. h4 {[%clk 0:01:38]}  Ra2 {[%clk 0:00:47]} 29. g4 {[%clk 0:01:35]}  Qd7 {[%clk 0:00:45]} 30. Bh3 {[%clk 0:01:21]}  Bd5 {[%clk 0:00:33]} 31. Qf4 {[%clk 0:01:17]}  Ng6 {[%clk 0:00:31]} 32. Qg3 {[%clk 0:01:10]}  Bxf3 {[%clk 0:00:29]} 33. Qxf3 {[%clk 0:01:08]}  Bxh4 {[%clk 0:00:28]} 34. g5 {[%clk 0:01:00]}  Qc7 {[%clk 0:00:20]} 35. e6 {[%clk 0:00:51]}  Qh2# {[%clk 0:00:19]} 0-1


[Site "https://www.chess.com"]

[Event "Titled Tuesday Blitz November 08 Late 2022"]
[White "Dahlgren, James Allen"]
[Black "Urbina Perez, Juan Antonio"]
[WhiteFideId "22256873"]
[BlackFideId "2217368"]
[WhiteElo "2191"]
[BlackElo "2197"]
[Result "0-1"]
[Round "04"]
[TimeControl "180+1"]
[Date "2022.11.09"]
[WhiteClock "0:01:30"]
[BlackClock "0:01:23"]

1. e4 {[%clk 0:02:52]}  c5 {[%clk 0:02:59]} 2. Nc3 {[%clk 0:02:53]}  Nc6 {[%clk 0:02:58]} 3. f4 {[%clk 0:02:54]}  g6 {[%clk 0:02:57]} 4. Nf3 {[%clk 0:02:55]}  Bg7 {[%clk 0:02:57]} 5. Bc4 {[%clk 0:02:55]}  e6 {[%clk 0:02:56]} 6. O-O {[%clk 0:02:56]}  Nge7 {[%clk 0:02:56]} 7. d3 {[%clk 0:02:55]}  O-O {[%clk 0:02:55]} 8. g4 {[%clk 0:02:55]}  Na5 {[%clk 0:02:52]} 9. Bd2 {[%clk 0:02:53]}  Nxc4 {[%clk 0:02:51]} 10. dxc4 {[%clk 0:02:53]}  d5 {[%clk 0:02:51]} 11. cxd5 {[%clk 0:02:52]}  exd5 {[%clk 0:02:52]} 12. e5 {[%clk 0:02:50]}  Bxg4 {[%clk 0:02:48]} 13. Qe1 {[%clk 0:02:46]}  Bxf3 {[%clk 0:02:23]} 14. Rxf3 {[%clk 0:02:47]}  Nf5 {[%clk 0:02:23]} 15. Rd1 {[%clk 0:02:45]}  d4 {[%clk 0:02:15]} 16. Ne4 {[%clk 0:02:44]}  b6 {[%clk 0:01:59]} 17. Qf1 {[%clk 0:02:22]}  Qd5 {[%clk 0:01:53]} 18. Nf6+ {[%clk 0:02:17]}  Bxf6 {[%clk 0:01:52]} 19. exf6 {[%clk 0:02:18]}  Qe6 {[%clk 0:01:48]} 20. c3 {[%clk 0:02:09]}  Qxf6 {[%clk 0:01:47]} 21. Qc4 {[%clk 0:02:04]}  Rad8 {[%clk 0:01:43]} 22. Re1 {[%clk 0:01:59]}  Qh4 {[%clk 0:01:40]} 23. Kg2 {[%clk 0:01:52]}  Qg4+ {[%clk 0:01:38]} 24. Kf2 {[%clk 0:01:51]}  Rfe8 {[%clk 0:01:31]} 25. Rxe8+ {[%clk 0:01:45]}  Rxe8 {[%clk 0:01:31]} 26. Qd5 {[%clk 0:01:30]}  Nh4 {[%clk 0:01:23]} 0-1


[Site "https://www.chess.com"]

[Event "Titled Tuesday Blitz November 08 Late 2022"]
[White "Dilanyan, Grigor"]
[Black "Sarana, Alexey"]
[WhiteFideId "13303570"]
[BlackFideId "24133795"]
[WhiteElo "2229"]
[BlackElo "2708"]
[Result "0-1"]
[Round "04"]
[TimeControl "180+1"]
[Date "2022.11.08"]
[WhiteClock "0:00:05"]
[BlackClock "0:00:13"]

1. e4 {[%clk 0:02:57]}  c5 {[%clk 0:02:58]} 2. Nf3 {[%clk 0:02:56]}  d6 {[%clk 0:02:59]} 3. Bb5+ {[%clk 0:02:55]}  Bd7 {[%clk 0:02:58]} 4. Bxd7+ {[%clk 0:02:44]}  Nxd7 {[%clk 0:02:59]} 5. O-O {[%clk 0:02:45]}  e6 {[%clk 0:02:59]} 6. c3 {[%clk 0:02:43]}  Ngf6 {[%clk 0:02:58]} 7. Re1 {[%clk 0:02:43]}  Be7 {[%clk 0:02:59]} 8. d4 {[%clk 0:02:44]}  O-O {[%clk 0:03:00]} 9. e5 {[%clk 0:02:33]}  Ne8 {[%clk 0:02:59]} 10. d5 {[%clk 0:02:31]}  Nxe5 {[%clk 0:02:34]} 11. Nxe5 {[%clk 0:02:27]}  dxe5 {[%clk 0:02:33]} 12. dxe6 {[%clk 0:02:28]}  Qxd1 {[%clk 0:02:02]} 13. exf7+ {[%clk 0:02:25]}  Kxf7 {[%clk 0:01:59]} 14. Rxd1 {[%clk 0:02:26]}  c4 {[%clk 0:01:55]} 15. Be3 {[%clk 0:02:24]}  Nd6 {[%clk 0:01:39]} 16. Nd2 {[%clk 0:02:14]}  b5 {[%clk 0:01:20]} 17. Nf3 {[%clk 0:01:51]}  Ke6 {[%clk 0:01:18]} 18. Bc5 {[%clk 0:01:43]}  Rfd8 {[%clk 0:01:02]} 19. Re1 {[%clk 0:01:33]}  Bf6 {[%clk 0:01:01]} 20. Rad1 {[%clk 0:01:18]}  a6 {[%clk 0:00:24]} 21. Nxe5 {[%clk 0:00:35]}  Bxe5 {[%clk 0:00:24]} 22. Bd4 {[%clk 0:00:36]}  Nf7 {[%clk 0:00:22]} 23. f4 {[%clk 0:00:37]}  Rd5 {[%clk 0:00:21]} 24. Re2 {[%clk 0:00:22]}  Rad8 {[%clk 0:00:18]} 25. Rde1 {[%clk 0:00:19]}  Kf5 {[%clk 0:00:17]} 26. fxe5 {[%clk 0:00:20]}  Ke6 {[%clk 0:00:17]} 27. g4 {[%clk 0:00:18]}  a5 {[%clk 0:00:15]} 28. Kg2 {[%clk 0:00:17]}  b4 {[%clk 0:00:14]} 29. h4 {[%clk 0:00:16]}  Rb8 {[%clk 0:00:14]} 30. Rf1 {[%clk 0:00:16]}  Rb7 {[%clk 0:00:12]} 31. Kg3 {[%clk 0:00:15]}  Nd8 {[%clk 0:00:12]} 32. Rf8 {[%clk 0:00:13]}  Nc6 {[%clk 0:00:13]} 33. Re8+ {[%clk 0:00:14]}  Kd7 {[%clk 0:00:12]} 34. Rg8 {[%clk 0:00:14]}  Ke6 {[%clk 0:00:13]} 35. Re8+ {[%clk 0:00:07]}  Re7 {[%clk 0:00:12]} 36. Rxe7+ {[%clk 0:00:07]}  Kxe7 {[%clk 0:00:13]} 37. Re4 {[%clk 0:00:04]}  Nxd4 {[%clk 0:00:12]} 38. Rxd4 {[%clk 0:00:04]}  Rxd4 {[%clk 0:00:12]} 39. cxd4 {[%clk 0:00:05]}  c3 {[%clk 0:00:13]} 0-1


[Site "https://www.chess.com"]